bitfinex-derivatives/quotes_BTCF0:USTF0_20251129
["timestamp","ask_amount","ask_price","bid_price","bid_amount"]
[1764418751840,0.435,90675.0,90674.0,0.42744531]
[1764418753751,0.125,90675.0,90674.0,0.42744531]
[1764418754153,0.385,90675.0,90674.0,0.42744531]
[1764418754654,0.005,90675.0,90674.0,0.42744531]
[1764418754852,0.375,90675.0,90674.0,0.42744531]
[1764418756755,0.39704,90675.0,90674.0,0.42744531]
[1764418761156,0.4188,90675.0,90674.0,0.42744531]
[1764418763953,0.4188,90675.0,90674.0,0.05561851]
[1764418768659,0.39704,90675.0,90674.0,0.05561851]
[1764418769365,0.41914,90675.0,90674.0,0.05561851]
[1764418780167,0.44387942,90675.0,90674.0,0.05561851]
[1764418783182,0.44387942,90675.0,90674.0,0.41641851]
[1764418797488,0.44388184,90675.0,90674.0,0.41641851]
[1764418798376,0.42178184,90675.0,90674.0,0.41641851]
[1764418799080,0.44490184,90675.0,90674.0,0.41641851]
[1764418805388,0.44490184,90675.0,90674.0,0.05561851]
[1764418805593,0.44490184,90675.0,90674.0,0.41641851]
[1764418818302,0.44490184,90675.0,90674.0,0.42906851]
[1764418823602,0.39974184,90675.0,90674.0,0.42906851]
[1764418823903,0.0001654,90681.0,90680.0,0.05815]
[1764418824099,0.0001654,90681.0,90680.0,0.0691761]
[1764418825200,0.0547239,90698.0,90697.0,0.04487]
[1764418825402,0.4147239,90698.0,90697.0,0.04487]
[1764418825804,1.2947239,90698.0,90697.0,0.04487]
[1764418826108,1.2947239,90698.0,90697.0,0.055894]
[1764418826601,1.3047239,90698.0,90697.0,0.055894]
[1764418827408,1.2947,90698.0,90697.0,0.055894]
[1764418830608,1.2947,90698.0,90697.0,0.06777488]
[1764418831304,1.2937,90698.0,90697.0,0.06777488]
[1764418831498,0.4137,90698.0,90697.0,0.06777488]
[1764418831903,0.4067,90698.0,90697.0,0.06777488]
[1764418832397,0.4037,90698.0,90697.0,0.06777488]
[1764418832606,0.4077,90698.0,90697.0,0.42857488]
[1764418841516,0.4037,90698.0,90697.0,0.42857488]
[1764418841717,0.4067,90698.0,90697.0,0.42857488]
[1764418842113,0.4037,90698.0,90697.0,0.42857488]
[1764418842312,0.4067,90698.0,90697.0,0.42857488]
[1764418844024,0.4037,90698.0,90697.0,0.42857488]
[1764418844214,0.4077,90698.0,90697.0,0.42857488]
[1764418853129,0.43225035,90698.0,90697.0,0.42857488]
[1764418855731,0.43225035,90698.0,90697.0,0.47857488]
[1764418860832,0.43225035,90698.0,90697.0,0.46755088]
[1764418861030,0.82279035,90698.0,90697.0,0.42268088]
[1764418861231,1.39643035,90698.0,90697.0,0.05]
[1764418861438,0.055305,90689.0,90687.0,0.3608]
[1764418861733,1.01349535,90689.0,90687.0,0.3608]
[1764418862124,0.61349535,90689.0,90688.0,0.0426754]
[1764418862329,0.60349535,90689.0,90688.0,0.0426754]
[1764418863133,0.60549535,90689.0,90688.0,0.0426754]
[1764418864636,0.60549535,90689.0,90688.0,0.05430573]
[1764418865433,0.60549535,90689.0,90688.0,0.03298573]
[1764418866539,1.03549535,90689.0,90688.0,0.01179573]
[1764418869145,1.39629535,90689.0,90688.0,0.01179573]
[1764418869353,1.39629535,90689.0,90688.0,0.0001654]
[1764418869643,0.0553073,90670.0,90669.0,0.05527]
[1764418869830,0.4353073,90670.0,90669.0,0.05527]
[1764418870439,0.42428,90670.0,90669.0,0.05527]
[1764418870640,0.42428,90670.0,90669.0,0.02119]
[1764418870934,0.42428,90670.0,90669.0,0.02519]
[1764418870935,0.85881211,90670.0,90669.0,0.02519]
[1764418871135,0.83428,90670.0,90669.0,0.02519]
[1764418871837,0.85880436,90670.0,90669.0,0.02519]
[1764418872238,0.44880436,90670.0,90669.0,0.04651]
[1764418872944,0.44880436,90670.0,90669.0,0.05815289]
[1764418873245,0.42428,90670.0,90669.0,0.06918029]
[1764418879344,0.42428,90670.0,90669.0,0.05815289]
[1764418881852,0.42428,90670.0,90669.0,0.01564289]
[1764418882346,0.87428,90670.0,90669.0,0.01564289]
[1764418883149,0.89878424,90670.0,90669.0,0.004]
[1764418883555,0.0438,90662.0,90661.0,0.3608]
[1764418883849,0.4538,90662.0,90661.0,0.3608]
[1764418884544,0.4648283,90662.0,90661.0,0.3608]
[1764418885455,0.4648283,90662.0,90661.0,0.3628]
[1764418885749,0.8748283,90662.0,90661.0,0.3628]
[1764418885957,0.8748283,90662.0,90661.0,0.37479766]
[1764418886658,0.8748283,90662.0,90661.0,0.01399766]
[1764418888345,0.89934793,90662.0,90661.0,0.01399766]
[1764418893158,0.0549094,90653.0,90652.0,0.3608]
[1764418893458,0.6385894,90653.0,90652.0,0.39582896]
[1764418893653,0.6385894,90653.0,90652.0,0.41717896]
[1764418893857,0.8485894,90653.0,90652.0,0.41717896]
[1764418894556,0.8485894,90653.0,90652.0,0.39782896]
[1764418894762,0.8485894,90653.0,90652.0,0.37477896]
[1764418895056,0.6385894,90653.0,90652.0,0.37577896]
[1764418895559,1.0285894,90653.0,90652.0,0.37577896]
[1764418896863,1.0285894,90653.0,90652.0,0.39882896]
[1764418897158,1.0285894,90653.0,90652.0,0.37577896]
[1764418899062,1.0285894,90653.0,90652.0,0.39882896]
[1764418899454,1.0285894,90653.0,90652.0,0.39782896]
[1764418900449,1.0285894,90653.0,90652.0,0.39582896]
[1764418900650,1.0315894,90653.0,90652.0,0.39582896]
[1764418901457,1.0315894,90653.0,90652.0,0.37277896]
[1764418901650,1.05615412,90653.0,90652.0,0.01197896]
[1764418901859,0.0549101,90647.0,90646.0,0.0233258]
[1764418902171,0.4649101,90647.0,90646.0,0.0233258]
[1764418903362,0.4649101,90647.0,90646.0,0.03513797]
[1764418903671,0.4669101,90647.0,90646.0,0.03513797]
[1764418903967,0.4669101,90647.0,90646.0,0.03613797]
[1764418904166,0.4669101,90647.0,90646.0,0.05748797]
[1764418906357,0.9169101,90647.0,90646.0,0.05748797]
[1764418907065,0.9169101,90647.0,90646.0,0.03613797]
[1764418907261,0.94147497,90647.0,90646.0,0.01308797]
[1764418910069,0.94147497,90647.0,90646.0,0.0012758]
[1764418910768,1.11519497,90647.0,90646.0,0.0012758]
[1764418912568,1.11519497,90647.0,90646.0,0.0456758]
[1764418913068,0.49147497,90647.0,90646.0,0.0456758]
[1764418913267,0.66519497,90647.0,90646.0,0.0456758]
[1764418914276,0.49147497,90647.0,90646.0,0.0456758]
[1764418914572,0.66519497,90647.0,90646.0,0.0456758]
[1764418922775,0.66522411,90647.0,90646.0,0.0456758]
[1764418923377,0.43659401,90647.0,90646.0,0.056706]
[1764418923578,0.03659401,90647.0,90646.0,0.056706]
[1764418923784,0.012,90647.0,90646.0,0.056706]
[1764418924786,0.0110288,90658.0,90655.0,0.0551091]
[1764418924973,0.3747554,90656.0,90655.0,0.0551091]
[1764418925170,0.3501654,90656.0,90655.0,0.0551091]
[1764418925784,0.064,90656.0,90655.0,0.0551091]
[1764418927070,0.004,90656.0,90655.0,0.0551091]
[1764418928686,0.0001654,90665.0,90664.0,0.068458]
[1764418928988,0.4654254,90665.0,90664.0,0.068458]
[1764418929883,0.4704254,90665.0,90664.0,0.068458]
[1764418931476,0.4482854,90665.0,90664.0,0.068458]
[1764418931685,0.4251654,90665.0,90664.0,0.068458]
[1764418933980,0.4704254,90665.0,90664.0,0.05743]
[1764418937489,0.4684254,90665.0,90664.0,0.05743]
[1764418939089,0.4794533,90665.0,90664.0,0.05743]
[1764418939689,0.4684254,90665.0,90664.0,0.05743]
[1764418940994,0.4684254,90665.0,90664.0,0.04408]
[1764418943605,0.4684254,90665.0,90664.0,0.0569]
[1764418949199,0.4684254,90665.0,90664.0,0.04408]
[1764418955603,0.056658,90664.0,90663.0,0.3608]
[1764418955902,0.476658,90664.0,90663.0,0.3608]
[1764418956794,0.479658,90664.0,90663.0,0.3608]
[1764418957597,0.87411231,90664.0,90663.0,0.3608]
[1764418958106,0.87411231,90664.0,90663.0,0.38388]
[1764418958807,0.87411231,90664.0,90663.0,0.3608]
[1764418962405,0.87411231,90664.0,90655.0,0.01172057]
[1764418962406,0.056659,90656.0,90655.0,0.01172057]
[1764418962707,0.0566594,90653.0,90652.0,0.38388]
[1764418962904,0.46111371,90653.0,90652.0,0.40678]
[1764418964108,0.46111371,90653.0,90652.0,0.38388]
[1764418965105,0.46111371,90653.0,90652.0,0.39555379]
[1764418965410,0.45008431,90653.0,90652.0,0.39555379]
[1764418965611,0.45008431,90653.0,90652.0,0.41845379]
[1764418966294,0.81008431,90653.0,90652.0,0.37247379]
[1764418966495,0.45008431,90653.0,90652.0,0.37247379]
[1764418966706,0.89008431,90653.0,90652.0,0.37247379]
[1764418966906,0.89008431,90653.0,90652.0,0.01167379]
[1764418967110,0.04563,90647.0,90646.0,0.0004412]
[1764418967302,0.47111441,90647.0,90646.0,0.0235212]
[1764418967502,0.91111441,90647.0,90646.0,0.0235212]
[1764418968012,0.91111441,90647.0,90646.0,0.0004412]
[1764418968213,0.91111441,90647.0,90646.0,0.0014412]
[1764418968597,0.91111441,90647.0,90646.0,0.0034412]
[1764418969302,0.91111441,90647.0,90646.0,0.0265212]
[1764418970213,0.91111441,90647.0,90646.0,0.0379702]
[1764418970414,0.8866601,90647.0,90646.0,0.0379702]
[1764418971302,0.8866601,90647.0,90646.0,0.0034412]
[1764418972609,0.0566608,90641.0,90640.0,0.00013744]
[1764418972815,0.91106534,90641.0,90640.0,0.00013744]
[1764418973312,0.8866608,90641.0,90640.0,0.00013744]
[1764418974115,0.8866608,90641.0,90640.0,0.00113744]
[1764418974608,0.8866608,90641.0,90640.0,0.00413744]
[1764418981917,0.8866608,90641.0,90640.0,0.02609744]
[1764418982215,0.8866608,90641.0,90640.0,0.04860744]
[1764418982804,0.4466608,90641.0,90640.0,0.04860744]
[1764418983010,0.4466608,90641.0,90640.0,0.06136744]
[1764418986417,0.4466608,90641.0,90640.0,0.07239844]
[1764418986724,0.43563,90641.0,90640.0,0.07239844]
[1764418988713,0.43563,90641.0,90640.0,0.06136744]
[1764418991610,0.43563,90641.0,90640.0,0.04860744]
[1764418992017,0.43563,90641.0,90640.0,0.06136744]
[1764418992922,0.43563,90641.0,90640.0,0.04860744]
[1764418996414,0.84563,90641.0,90640.0,0.04860744]
[1764418996614,0.84563,90641.0,90640.0,0.00413744]
[1764418996823,0.87010139,90641.0,90640.0,0.00413744]
[1764419003136,0.87010139,90641.0,90640.0,0.02641744]
[1764419003336,0.87010139,90641.0,90640.0,0.00413744]
[1764419009440,0.87007329,90641.0,90640.0,0.00413744]
[1764419012932,0.87007329,90641.0,90640.0,0.02518744]
[1764419016848,0.87007329,90641.0,90640.0,0.00413744]
[1764419017441,0.87007329,90641.0,90640.0,0.02518744]
[1764419019443,0.87007329,90641.0,90640.0,0.00413744]
[1764419023336,0.87007329,90641.0,90640.0,0.02518744]
[1764419023547,0.87007329,90641.0,90640.0,0.02218744]
[1764419023748,0.87007329,90641.0,90640.0,0.02418744]
[1764419024749,0.87007329,90641.0,90640.0,0.00313744]
[1764419026958,0.87007329,90641.0,90640.0,0.02418744]
[1764419027257,0.87007329,90641.0,90640.0,0.04668744]
[1764419027950,1.75007329,90641.0,90640.0,0.04668744]
[1764419030061,1.43007329,90641.0,90640.0,0.04668744]
[1764419030856,1.34007329,90641.0,90640.0,0.04668744]
[1764419031161,1.37007329,90641.0,90640.0,0.04668744]
[1764419031366,1.58007329,90641.0,90640.0,0.04668744]
[1764419037168,1.58007329,90641.0,90640.0,0.00313744]
[1764419050974,1.58007329,90641.0,90640.0,0.02468744]
[1764419052183,1.58007329,90641.0,90640.0,0.02268744]
[1764419053080,1.58007329,90641.0,90640.0,0.04519744]
[1764419053885,1.34007329,90641.0,90640.0,0.04519744]
[1764419054685,0.63383329,90641.0,90640.0,0.04519744]
[1764419055086,1.51383329,90641.0,90640.0,0.04519744]
[1764419055281,0.63383329,90641.0,90640.0,0.04519744]
[1764419060781,0.46007329,90641.0,90640.0,0.04519744]
[1764419087311,0.46007329,90641.0,90640.0,0.02268744]
[1764419088012,0.46007329,90641.0,90640.0,0.00113744]
[1764419089316,0.86007329,90641.0,90640.0,0.00113744]
[1764419089707,0.60007329,90641.0,90640.0,0.00113744]
[1764419089913,0.84007329,90641.0,90640.0,0.00113744]
[1764419099618,0.84007329,90641.0,90640.0,0.04612744]
[1764419100014,0.55007329,90641.0,90640.0,0.04612744]
[1764419102616,0.46007329,90641.0,90640.0,0.04612744]
[1764419105526,0.87007329,90641.0,90640.0,0.00113744]
[1764419110127,0.0556823,90629.0,90619.0,0.0110334]
[1764419110429,1.05387369,90629.0,90619.0,0.0110335]
[1764419110628,1.05387369,90629.0,90628.0,0.38301]
[1764419111022,1.05400598,90629.0,90628.0,0.38301]
[1764419111420,1.05400598,90629.0,90628.0,0.38701]
[1764419113030,1.05400598,90629.0,90628.0,0.40979]
[1764419114033,1.05400598,90629.0,90628.0,0.42125805]
[1764419114423,0.66297368,90629.0,90628.0,0.42125805]
[1764419114734,0.67400598,90629.0,90628.0,0.42125805]
[1764419115934,1.07400598,90629.0,90628.0,0.42125805]
[1764419116731,0.90028598,90629.0,90628.0,0.42125805]
[1764419117436,0.90028598,90629.0,90628.0,0.06045805]
[1764419117735,0.61028598,90629.0,90628.0,0.06045805]
[1764419121134,1.72028598,90629.0,90628.0,0.06045805]
[1764419122640,1.72028598,90629.0,90628.0,0.01546805]
[1764419128242,1.72028598,90629.0,90628.0,0.03860805]
[1764419128645,1.72028598,90629.0,90628.0,0.01546805]
[1764419130635,1.72028598,90629.0,90628.0,0.03672805]
[1764419131135,1.72028598,90629.0,90628.0,0.05943805]
[1764419131946,0.84028598,90629.0,90628.0,0.05943805]
[1764419132843,0.84026022,90629.0,90628.0,0.05943805]
[1764419147956,1.72026022,90629.0,90628.0,0.05943805]
[1764419171777,1.72026022,90629.0,90628.0,0.03672805]
[1764419175888,1.72026022,90629.0,90628.0,0.01546805]
[1764419176078,0.0547631,90622.0,90621.0,0.40658]
[1764419176385,0.46920873,90622.0,90621.0,0.40658]
[1764419177186,0.45817563,90622.0,90621.0,0.41058]
[1764419178294,0.45817563,90622.0,90621.0,0.42193834]
[1764419195904,0.45817563,90622.0,90621.0,0.06113834]
[1764419196201,0.45817563,90622.0,90621.0,0.42193834]
[1764419211507,0.45817563,90622.0,90621.0,0.06113834]
[1764419211706,0.45817563,90622.0,90621.0,0.42193834]
[1764419221218,0.43695563,90622.0,90621.0,0.42193834]
[1764419221418,0.41444563,90622.0,90621.0,0.42193834]
[1764419222220,0.43610563,90622.0,90621.0,0.42193834]
[1764419222516,0.41444563,90622.0,90621.0,0.42193834]
[1764419222821,0.39,90622.0,90621.0,0.42193834]
[1764419226119,0.41411259,90622.0,90621.0,0.42193834]
[1764419234829,0.41511259,90622.0,90621.0,0.41793834]
[1764419235424,0.45908259,90622.0,90621.0,0.41793834]
[1764419240637,0.43677259,90622.0,90621.0,0.41793834]
[1764419242035,0.45826259,90622.0,90621.0,0.41793834]
[1764419252938,0.45826259,90622.0,90621.0,0.05713834]
[1764419253143,0.45826259,90622.0,90621.0,0.41793834]
[1764419260243,0.45826259,90622.0,90621.0,0.05713834]
[1764419260448,0.45826259,90622.0,90621.0,0.41793834]
[1764419272970,0.43677259,90622.0,90621.0,0.41793834]
[1764419273770,0.34511259,90622.0,90621.0,0.41793834]
[1764419274967,0.36802259,90622.0,90621.0,0.41793834]
[1764419276770,0.39008259,90622.0,90621.0,0.41793834]
[1764419287480,0.39008259,90622.0,90621.0,0.05713834]
[1764419287688,0.07511259,90622.0,90621.0,0.41793834]
[1764419291390,0.44664259,90622.0,90621.0,0.41793834]
[1764419295287,0.25511259,90622.0,90621.0,0.41793834]
[1764419299492,0.27719259,90622.0,90621.0,0.41793834]
[1764419301289,0.02511259,90622.0,90621.0,0.41793834]
[1764419301490,0.00013229,90629.0,90628.0,0.0534224]
[1764419301689,0.0001655,90638.0,90637.0,0.04239]
[1764419301690,0.0438855,90638.0,90637.0,0.04239]
[1764419301898,0.4638855,90638.0,90637.0,0.4142213]
[1764419304005,0.4688855,90638.0,90637.0,0.4142213]
[1764419304797,0.4688855,90638.0,90637.0,0.40319]
[1764419309905,0.4688855,90638.0,90637.0,0.41769944]
[1764419313519,0.49380112,90638.0,90637.0,0.41769944]
[1764419314622,0.49380112,90638.0,90637.0,0.39635944]
[1764419315915,0.49380112,90638.0,90637.0,0.41899944]
[1764419317522,0.49380112,90638.0,90637.0,0.39635944]
[1764419319122,0.49380112,90638.0,90637.0,0.37530944]
[1764419319418,0.89380112,90638.0,90637.0,0.37530944]
[1764419319621,0.89380112,90638.0,90611.0,0.3608]
[1764419319622,0.0570634,90620.0,90611.0,0.3608]
[1764419319923,0.52197902,90620.0,90611.0,0.3608]
[1764419321116,0.46197902,90620.0,90611.0,0.3608]
[1764419321319,0.85197902,90620.0,90611.0,0.3608]
[1764419321721,0.61197902,90620.0,90611.0,0.3718344]
[1764419322128,0.04603,90610.0,90609.0,0.37397]
[1764419322327,0.39603,90610.0,90609.0,0.41869]
[1764419322527,0.39603,90610.0,90609.0,0.43218531]
[1764419324124,0.39603,90610.0,90609.0,0.43518531]
[1764419329934,0.04603,90617.0,90616.0,0.04472]
[1764419330134,0.46089838,90617.0,90616.0,0.04472]
[1764419330324,0.43603,90617.0,90616.0,0.04472]
[1764419330629,0.46089594,90617.0,90616.0,0.04472]
[1764419330829,0.43603,90617.0,90616.0,0.04472]
[1764419331218,0.41272,90617.0,90616.0,0.04472]
[1764419331626,0.41272,90617.0,90616.0,0.04572]
[1764419334534,0.43603,90617.0,90616.0,0.04572]
[1764419338847,0.43603,90617.0,90616.0,0.04634]
[1764419342141,0.46136079,90617.0,90616.0,0.04634]
[1764419354639,0.46136079,90617.0,90616.0,0.001]
[1764419355341,0.46136079,90617.0,90616.0,0.04706]
[1764419361253,0.46136079,90617.0,90616.0,0.0238]
[1764419363154,0.46136079,90617.0,90616.0,0.001]
[1764419367357,0.45842757,90617.0,90616.0,0.001]
[1764419368865,0.45842757,90617.0,90616.0,0.0574139]
[1764419369358,0.45842757,90617.0,90616.0,0.04638]
[1764419395478,0.45842757,90617.0,90616.0,0.05973]
[1764419395663,0.43511757,90617.0,90616.0,0.05973]
[1764419395867,0.45677757,90617.0,90616.0,0.05973]
[1764419397972,0.45677757,90617.0,90616.0,0.04638]
[1764419399081,0.45677757,90617.0,90616.0,0.0235]
[1764419399480,0.45677757,90617.0,90616.0,0.0345339]
[1764419400280,0.45677757,90617.0,90616.0,0.0235]
[1764419401477,0.45677757,90617.0,90616.0,0.001]
[1764419401682,0.04391,90607.0,90604.0,0.3608]
[1764419401883,0.0549474,90587.0,90586.0,0.38327]
[1764419402079,0.4749474,90587.0,90586.0,0.3608]
[1764419402682,0.50029552,90587.0,90586.0,0.3608]
[1764419403178,0.4749474,90587.0,90586.0,0.3608]
[1764419403484,0.4749474,90587.0,90586.0,0.3648]
[1764419403777,0.46391,90587.0,90586.0,0.40902]
[1764419404384,0.4749474,90587.0,90586.0,0.40902]
[1764419404886,0.46391,90587.0,90586.0,0.40902]
[1764419406280,0.1743728,90596.0,90595.0,0.04422]
[1764419406485,0.43937368,90596.0,90595.0,0.04422]
[1764419406786,0.04391,90590.0,90589.0,0.0552571]
[1764419406974,0.47391,90590.0,90589.0,0.0552571]
[1764419409174,0.47391,90590.0,90589.0,0.0582571]
[1764419409576,0.47391,90590.0,90589.0,0.0552571]
[1764419411185,0.47391,90590.0,90589.0,0.04422]
[1764419411386,0.47391,90590.0,90589.0,0.0552572]
[1764419412283,0.12391,90590.0,90589.0,0.0552572]
[1764419412790,0.10128,90590.0,90589.0,0.0552572]
[1764419413186,0.08,90590.0,90589.0,0.0552572]
[1764419414884,0.0001655,90596.0,90595.0,0.0552564]
[1764419414885,0.0214455,90596.0,90595.0,0.0552564]
[1764419415088,0.0001655,90596.0,90595.0,0.4160564]
[1764419415386,0.02128,90605.0,90604.0,0.0680253]
[1764419415688,0.1742073,90610.0,90609.0,0.0552547]
[1764419415989,0.41391,90610.0,90609.0,0.0552547]
[1764419416790,0.41891,90610.0,90609.0,0.0552547]
[1764419422901,0.41891,90610.0,90609.0,0.06860151]
[1764419424592,0.16891,90610.0,90609.0,0.06860151]
[1764419426395,0.39891,90610.0,90609.0,0.06860151]
[1764419430205,0.17891,90610.0,90609.0,0.06860151]
[1764419430901,0.41891,90610.0,90609.0,0.03554681]
[1764419431100,0.44419684,90610.0,90609.0,0.05775681]
[1764419432204,0.44419684,90610.0,90609.0,0.06879151]
[1764419436197,0.44419684,90610.0,90609.0,0.03554681]
[1764419436397,0.44419684,90610.0,90609.0,0.05775681]
[1764419440314,0.10419684,90610.0,90609.0,0.05775681]
[1764419440614,0.43891,90610.0,90609.0,0.05775681]
[1764419441209,0.46415613,90610.0,90609.0,0.05775681]
[1764419443817,0.45915613,90610.0,90609.0,0.05775681]
[1764419444111,0.46415613,90610.0,90609.0,0.05775681]
[1764419460218,0.46415613,90610.0,90609.0,0.01334681]
[1764419460423,0.46415613,90610.0,90609.0,0.02256]
[1764419461422,0.0438,90606.0,90605.0,0.0551652]
[1764419461623,0.49008123,90606.0,90605.0,0.0551652]
[1764419462415,0.49008123,90606.0,90605.0,0.06769756]
[1764419462616,0.49108123,90606.0,90605.0,0.06769756]
[1764419462815,0.48004613,90606.0,90605.0,0.06769756]
[1764419466724,0.19004613,90606.0,90605.0,0.06769756]
[1764419468820,0.07004613,90606.0,90605.0,0.06769756]
[1764419479538,0.07004613,90606.0,90605.0,0.42849756]
[1764419501348,0.07004613,90606.0,90605.0,0.06769756]
[1764419501547,0.07004613,90606.0,90605.0,0.42849756]
[1764419502452,0.02624613,90606.0,90605.0,0.42849756]
[1764419502654,0.0001655,90619.0,90618.0,0.02176]
[1764419502655,0.0228055,90619.0,90618.0,0.02176]
[1764419502847,0.0228055,90619.0,90618.0,0.0685336]
[1764419502848,0.2644155,90619.0,90618.0,0.0685336]
[1764419503962,0.2694155,90619.0,90618.0,0.0685336]
[1764419504151,0.2704155,90619.0,90618.0,0.0685336]
[1764419507660,0.281449,90619.0,90618.0,0.0575]
[1764419510361,0.281449,90619.0,90618.0,0.0696443]
[1764419511963,0.2488055,90619.0,90618.0,0.0696443]
[1764419512157,0.2704155,90619.0,90618.0,0.0696443]
[1764419514762,0.29555524,90619.0,90618.0,0.0696443]
[1764419519170,0.29555524,90619.0,90618.0,0.0565743]
[1764419520563,0.03130524,90619.0,90618.0,0.0565743]
[1764419521766,0.0205483,90619.0,90618.0,0.4065743]
[1764419521966,0.001,90619.0,90618.0,0.4065743]
[1764419522168,0.17419194,90640.0,90639.0,0.05564]
[1764419522470,0.47389,90640.0,90639.0,0.05564]
[1764419523166,0.47489,90640.0,90639.0,0.05564]
[1764419523366,0.48189,90640.0,90639.0,0.05564]
[1764419524572,0.48189,90640.0,90639.0,0.04265]
[1764419525573,0.47689,90640.0,90639.0,0.0536811]
[1764419526279,0.47689,90640.0,90639.0,0.0666711]
[1764419526775,0.47689,90640.0,90639.0,0.4274711]
[1764419529971,0.47689,90640.0,90639.0,0.43976285]
[1764419533775,0.5017189,90640.0,90639.0,0.43976285]
[1764419533984,0.4997189,90640.0,90639.0,0.43976285]
[1764419534182,0.4997189,90640.0,90639.0,0.44176285]
[1764419534579,0.49971647,90640.0,90639.0,0.44176285]
[1764419534778,0.47489,90640.0,90639.0,0.43073175]
[1764419534976,0.47389,90640.0,90639.0,0.43073175]
[1764419535375,0.47389,90640.0,90639.0,0.41774175]
[1764419540384,0.47389,90640.0,90639.0,0.42877285]
[1764419540585,0.47389,90640.0,90639.0,0.41774175]
[1764419542688,0.47389,90640.0,90639.0,0.43103175]
[1764419544189,0.49872681,90640.0,90639.0,0.43103175]
[1764419556497,0.45483681,90640.0,90639.0,0.43103175]
[1764419558792,0.02483681,90640.0,90639.0,0.43103175]
[1764419560092,0.06720681,90640.0,90639.0,0.43103175]
[1764419564296,0.45720681,90640.0,90639.0,0.43103175]
[1764419568304,0.45720681,90640.0,90639.0,0.41774175]
[1764419568896,0.45720681,90640.0,90639.0,0.43132175]
[1764419570504,0.45720681,90640.0,90639.0,0.42932175]
[1764419570706,0.45720681,90640.0,90639.0,0.43032175]
[1764419576212,0.43237,90640.0,90639.0,0.43032175]
[1764419576410,0.45734959,90640.0,90639.0,0.43032175]
[1764419578413,0.45734959,90640.0,90639.0,0.06952175]
[1764419585813,0.45734959,90640.0,90639.0,0.01329175]
[1764419586912,0.02497959,90640.0,90639.0,0.08235285]
[1764419594515,0.0002758,90646.0,90645.0,0.0690603]
[1764419594716,0.3102758,90646.0,90645.0,0.4298603]
[1764419595527,0.3320958,90646.0,90645.0,0.4298603]
[1764419595730,0.3330958,90646.0,90645.0,0.4298603]
[1764419596416,0.3320958,90646.0,90645.0,0.4298603]
[1764419596819,0.3330958,90646.0,90645.0,0.4298603]
[1764419597326,0.3320958,90646.0,90645.0,0.4298603]
[1764419597526,0.3320958,90646.0,90645.0,0.4308603]
[1764419598028,0.3102758,90646.0,90645.0,0.4308603]
[1764419603331,0.3546758,90646.0,90645.0,0.4308603]
[1764419606431,0.3795735,90646.0,90645.0,0.4308603]
[1764419608736,0.3546758,90646.0,90645.0,0.4308603]
[1764419609123,0.37957452,90646.0,90645.0,0.4308603]
[1764419609331,0.3546758,90646.0,90645.0,0.4308603]
[1764419610035,0.37957521,90646.0,90645.0,0.4308603]
[1764419611331,0.37957521,90646.0,90645.0,0.41983]
[1764419620242,0.33517521,90646.0,90645.0,0.41983]
[1764419623342,0.35640521,90646.0,90645.0,0.41983]
[1764419623945,0.10640521,90646.0,90645.0,0.41983]
[1764419626447,0.08517521,90646.0,90645.0,0.41983]
[1764419628156,0.0001655,90649.0,90648.0,0.05816]
[1764419628347,0.04424,90671.0,90668.0,0.01214]
[1764419628544,0.46424,90671.0,90670.0,0.04464]
[1764419629757,0.46424,90671.0,90670.0,0.04564]
[1764419634160,0.46424,90671.0,90670.0,0.05784824]
[1764419638157,0.04424,90671.0,90670.0,0.05784824]
[1764419638356,0.26424,90671.0,90670.0,0.05784824]
[1764419642459,0.26424,90671.0,90670.0,0.01320824]
[1764419643470,0.28870618,90671.0,90670.0,0.01320824]
[1764419645165,0.28870618,90671.0,90670.0,0.02423554]
[1764419645566,0.28870618,90671.0,90670.0,0.01320824]
[1764419654059,0.28870618,90671.0,90670.0,0.01220824]
[1764419654259,0.01262,90669.0,90666.0,0.0554277]
[1764419654473,0.04333,90667.0,90666.0,0.0554277]
[1764419654673,0.48779618,90667.0,90666.0,0.0554277]
[1764419654876,0.49882398,90667.0,90666.0,0.0554277]
[1764419655462,0.06779618,90667.0,90666.0,0.0687977]
[1764419655675,0.17779618,90667.0,90666.0,0.0697977]
[1764419659579,0.17779618,90667.0,90666.0,0.4305977]
[1764419672580,0.41779618,90667.0,90666.0,0.4305977]
[1764419673073,0.41779618,90667.0,90666.0,0.4062]
[1764419673074,0.42882388,90667.0,90666.0,0.4062]
[1764419674382,0.41779618,90667.0,90666.0,0.4062]
[1764419675180,0.19779618,90667.0,90666.0,0.4195]
[1764419679078,0.42779618,90667.0,90666.0,0.4195]
[1764419687288,0.42779618,90667.0,90666.0,0.0587]
[1764419687488,0.42779618,90667.0,90666.0,0.4195]
[1764419694087,0.03446618,90667.0,90666.0,0.4195]
[1764419694684,0.05567618,90667.0,90666.0,0.4195]
[1764419696685,0.41712618,90667.0,90666.0,0.4195]
[1764419698397,0.4172792,90667.0,90666.0,0.4195]
[1764419699188,0.39266,90667.0,90666.0,0.4195]
[1764419700786,0.15727799,90667.0,90666.0,0.4195]
[1764419702295,0.48727799,90667.0,90666.0,0.38358]
[1764419702490,0.48727799,90667.0,90666.0,0.3618]
[1764419702886,0.48727799,90667.0,90665.0,0.01183703]
[1764419703099,0.0572883,90662.0,90661.0,0.0001655]
[1764419703300,0.48190629,90662.0,90661.0,0.0001655]
[1764419704795,0.48290629,90662.0,90661.0,0.0001655]
[1764419704993,0.48290629,90662.0,90661.0,0.0459955]
[1764419705305,0.48390629,90662.0,90661.0,0.0459955]
[1764419705502,0.47287799,90662.0,90661.0,0.0459955]
[1764419705889,0.47287799,90662.0,90661.0,0.05774733]
[1764419711908,0.47287799,90662.0,90661.0,0.06877573]
[1764419712296,0.47287799,90662.0,90661.0,0.05774733]
[1764419716207,0.43315488,90662.0,90661.0,0.05774733]
[1764419716405,0.44336488,90662.0,90661.0,0.05774733]
[1764419731013,0.87336488,90662.0,90661.0,0.0001655]
[1764419735416,0.02042,90649.0,90648.0,0.05962]
[1764419735615,0.37042,90649.0,90648.0,0.05962]
[1764419735821,0.39503799,90649.0,90648.0,0.05962]
[1764419736122,0.37042,90649.0,90648.0,0.05962]
[1764419736620,0.3814499,90649.0,90648.0,0.06162]
[1764419737223,0.3814499,90649.0,90648.0,0.07345683]
[1764419737520,0.3814499,90649.0,90648.0,0.07245683]
[1764419748520,0.0514499,90649.0,90648.0,0.07245683]
[1764419748819,0.3820397,90651.0,90650.0,0.05962]
[1764419749026,0.7722497,90651.0,90650.0,0.05962]
[1764419750625,0.76122,90651.0,90650.0,0.05962]
[1764419756036,0.78701272,90651.0,90650.0,0.05962]
[1764419757923,0.42621272,90651.0,90650.0,0.05962]
[1764419759925,0.42621272,90651.0,90650.0,0.04579]